Cogmind - Beta 15 @@@ ROGUE MODE // 2025.06.22 @ 10:52:18 Player: Elxavo Result: Destroyed by G-34 Mercenary with Small Laser Performance ------------- Evolutions (0) 0 Regions Visited (1) 200 Robots Destroyed (14) 70 Value Destroyed (115) 115 Prototype IDs (0) 0 Alien Tech Used (0) 0 Bonus (0) 0 TOTAL SCORE: 385 Bonus ------- None Cogmind --------- Core Integrity 0/250 Matter 213/300 Energy 100/100 System Corruption 0% Temperature Cool (6) Movement Walking (260) Ox2 Location -10/Materials Parts ------- > --- POWER (1) -------- (None) > --- PROPULSION (2) --- Aluminum Leg > --- UTILITY (2) ------ Large Storage Unit Terrain Scanner > --- WEAPON (2) ------- Light Assault Rifle > --- INVENTORY (15) --- Light Ion Engine Light Ion Engine Light Treads Light Treads Large Storage Unit High-capacity Storage Unit Signal Interpreter Improved Terrain Scanner Improved Terrain Scanner Light Assault Rifle Light Assault Rifle Mining Laser Mining Laser Peak State ------------ > --- POWER ------------ Ion Engine > --- PROPULSION ------- Aluminum Leg Aluminum Leg > --- UTILITY ---------- Small Storage Unit Improved Terrain Scanner > --- WEAPON ----------- Assault Rifle Assault Rifle > --- INVENTORY -------- Light Ion Engine Light Treads Light Treads [Rating: 9] Favorites ----------- Power Ion Engine Engine Ion Engine Propulsion Aluminum Leg Leg Aluminum Leg Utility Seismic Detector Device Seismic Detector Storage Large Storage Unit Weapon Assault Rifle Ballistic Gun Assault Rifle Build | -11 -10 ------- Run | Yrd Mat Slots Evolved . | . . Power . | . . Propulsion . | . . Utility . | . . Weapon . | . . Parts Attached 11 | 8 3 Power 1 | 1 . Engine 1 | 1 . Core . | . . Reactor . | . . Propulsion 2 | 2 . Treads . | . . Leg 2 | 2 . Wheel . | . . Hover . | . . Flight . | . . Utility 5 | 3 2 Device 3 | 2 1 Storage 2 | 1 1 Processor . | . . Hackware . | . . Protection . | . . Artifact . | . . Weapon 3 | 2 1 Energy Gun . | . . Energy Cannon . | . . Ballistic Gun 3 | 2 1 Ballistic Cannon . | . . Launcher . | . . Special Weapon . | . . Impact Weapon . | . . Slashing Weapon . | . . Piercing Weapon . | . . Special Melee Weapon . | . . Unidentified Prototypes . | . . Parts Lost 5 | . 5 Power 1 | . 1 Propulsion 1 | . 1 Utility 1 | . 1 Weapon 2 | . 2 Highest Loss Streak 5 | . 5 To Critical Strikes . | . . Average Backups 9 | 3 11 Power 1 | 1 2 Propulsion 1 | 1 2 Utility 3 | . 3 Weapon 2 | . 3 Tool/Special . | . . Unused Backups 12 | . 12 Power 2 | . 2 Propulsion 2 | . 2 Utility 4 | . 4 Weapon 4 | . 4 Tool/Special . | . . Average Slot Usage (%) 97 | . 97 Engine 14 | . 14 Leg 26 | . 26 Device 14 | . 14 Storage 14 | . 14 Ballistic Gun 27 | . 27 Peak Build Rating 9 | 9 8 Average Rating 7 | 6 7 On Entrance 4 | . 8 Naked Turns . | . . Heaviest Build 30 | 15 30 Greatest Support 20 | 20 20 Greatest Overweight (x) 2 | 1 2 Average Overweight (x) . | . . Largest Inventory Capacity 15 | 8 15 Average Capacity 12 | 7 14 Most Carried 14 | 8 14 Average Carried 9 | 3 11 Final Capacity 15 | 8 15 Final Carried 13 | 8 13 Class Distribution -------------------- 100% | Mutant Dominant Class ---------------- Mutant | -10/Materials Resources | -11 -10 ----------- Run | Yrd Mat Matter Collected 386 | 346 40 Remotely . | . . Salvage Created 315 | 174 141 Parts 33 | 16 17 Haulers Intercepted . | . . Recyclers Shooed . | . . Parts Field Recycled . | . . Retrieved Matter . | . . Parts Self-Destructed . | . . Prevented . | . . Kills | -11 -10 ------- Run | Yrd Mat Combat Hostiles Destroyed 8 | . 8 Guns 8 | . 8 Classes Destroyed 4 | 2 2 Worker 1 | . 1 Tunneler 4 | 4 . Recycler 1 | 1 . Swarmer 8 | . 8 Best Kill Streak 6 | 2 6 Combat Bots Only 5 | . 5 Max Kills in Single Turn 1 | 1 1 Gunslinging . | . . Exploded . | . . Melee . | . . Uniques/NPCs Destroyed . | . . Combat | -11 -10 -------- Run | Yrd Mat Hostile Shots Fired 120 | . 120 Missed 18 | . 18 Hits 102 | . 102 Projectile 102 | . 102 Critical Strikes 1 | . 1 Damage Taken 840 | . 840 Core 259 | . 259 Absorbed by Shields . | . . Core Remaining (%) 100 | 100 . Volleys Fired 34 | 11 23 Largest 2 | 2 2 Hottest 40 | 40 40 Shots Fired 68 | 22 46 Gun 68 | 22 46 Cannon . | . . Launcher . | . . Special . | . . Kinetic 68 | 22 46 Thermal . | . . Explosive . | . . Electromagnetic . | . . Robot Hit Streak 4 | 4 4 Robot Miss Streak 4 | 2 4 Penetration Max . | . . Secondary Targets 3 | . 3 Max Gunslinging Chain 1 | . 1 Shots Hit Robots 36 | 12 24 Core Hits 16 | 6 10 Critical Kills . | . . Critical Parts Destroyed 2 | 1 1 Critical Strikes 2 | 1 1 Destroy 2 | 1 1 Melee Attacks . | . . Impact . | . . Slashing . | . . Piercing . | . . Sneak Attacks . | . . Combat Hostiles . | . . Follow-up Attacks . | . . Damage Inflicted 466 | 161 305 Guns 466 | 161 305 Cannons . | . . Explosions . | . . Melee . | . . Ramming . | . . Kinetic 466 | 161 305 Thermal . | . . Explosive . | . . Electromagnetic . | . . Impact . | . . Slashing . | . . Piercing . | . . Highest Corruption . | . . Average Corruption . | . . Corruption Purged . | . . Corruption Blocked . | . . Overload Shots . | . . Overflow Damage . | . . Projectiles . | . . Explosions . | . . Melee . | . . Knockbacks . | . . Impact . | . . Kinetic . | . . Secondary . | . . Self-Inflicted Damage . | . . Shots . | . . Rammed . | . . Targets Rammed . | . . Kicked . | . . Crushed . | . . Highest Temperature . | . . Average Temperature . | . . Received Heat Transfer 72 | . 72 Siege Activations . | . . Martial Activations . | . . Shielding Activations . | . . Robots Disrupted . | . . Combat Hostiles . | . . Robots Corrupted . | . . Combat Hostiles . | . . Parts Fried . | . . Impact Corruptions . | . . Robots Melted . | . . Combat Hostiles . | . . Parts Melted . | . . Heat Transferred . | . . Parts Sabotaged . | . . Parts Stolen . | . . Parts Stripped . | . . Power Chain Reactions . | . . Alert | -11 -10 ------- Run | Yrd Mat Maximum Alert Level . | . . Low Security (%) 100 | 100 100 Level 1 . | . . Level 2 . | . . Level 3 . | . . Level 4 . | . . Level 5 . | . . High Security . | . . Max Security . | . . Peak Influence 95 | 5 95 Initial 3 | . 3 Average 22 | 2 29 Influence Increases 257 | 25 232 Destroy 0b10 Robot/C 160 | . 160 Destroy 0b10 Robot/NC 30 | 25 5 Destroy Leader 30 | . 30 Successful Hack 7 | . 7 Lose Combat Pursuer 30 | . 30 Influence Decreases 182 | 20 162 Entered New Map 2 | . 2 Time Decay 130 | 20 110 Lost Part 50 | . 50 Squads Dispatched 2 | . 2 Investigation 1 | . 1 Extermination . | . . Reinforcement 1 | . 1 Assault . | . . Garrison . | . . Intercept . | . . Searches Triggered . | . . Construction Impeded . | . . Haulers Reinforced . | . . Active Scanning Responses . | . . Cargo Convoy Interrupts . | . . Stealth | -11 -10 --------- Run | Yrd Mat Distress Signals . | . . Communications Jammed . | . . Distress Signals . | . . Times Spotted 14 | . 14 Peak Tracking Total 6 | . 6 Tactical Retreats 2 | . 2 Traps | -11 -10 ------- Run | Yrd Mat Traps Triggered 1 | . 1 Indirectly . | . . Trap Hack Attempts . | . . Triggered . | . . Disarmed . | . . Reprogrammed . | . . Reused . | . . Traps Extracted . | . . Installed . | . . Triggered . | . . Machines | -11 -10 ---------- Run | Yrd Mat Machines Disabled . | . . Max in Single Turn . | . . Machines Repaired . | . . Machines Dismantled . | . . Machines Sabotaged . | . . Overloaded Fab Kills . | . . Hacking | -11 -10 --------- Run | Yrd Mat Machines Accessed 1 | . 1 Terminals 1 | . 1 Fabricators . | . . Repair Stations . | . . Recycling Units . | . . Scanalyzers . | . . Garrison Access . | . . Total Hacks 1 | . 1 Successful 1 | . 1 Failed . | . . Catastrophic . | . . Database Lockouts . | . . Manual . | . . Terminals 1 | . 1 Fabricators . | . . Repair Stations . | . . Recycling Units . | . . Scanalyzers . | . . Garrison Access . | . . Terminal Hacks 1 | . 1 Branch Access Points 1 | . 1 Fabricator Hacks . | . . Repair Station Hacks . | . . Recycling Unit Hacks . | . . Scanalyzer . | . . Garrison Access Hacks . | . . Unauthorized Hacks . | . . Terminals . | . . Fabricators . | . . Repair Stations . | . . Recycling Units . | . . Scanalyzers . | . . Garrison Access . | . . Data Cores Recovered . | . . Used . | . . Hacking Detections . | . . Full Trace Events . | . . Feedback Events . | . . Feedback Blocked . | . . Robot Schematics Acquired . | . . Robots Built . | . . Authchips . | . . Time . | . . Total Robot Build Rating . | . . Part Schematics Acquired . | . . Parts Built . | . . Authchips . | . . Time . | . . Total Part Build Rating . | . . Parts Repaired . | . . Time . | . . Parts Recycled . | . . Recycled Matter . | . . Retrieved Matter . | . . Retrieved Components . | . . Parts Scanalyzed . | . . Part Schematics Acquired . | . . Parts Damaged . | . . Bothacking | -11 -10 ------------ Run | Yrd Mat Used RIF Installer . | . . Robots Hacked . | . . Non-combat . | . . Combat . | . . Robot Hacks Applied . | . . Relay Couplers Released . | . . Fabnet Peak Effective % . | . . Robots Rewired . | . . Allies Hacked . | . . Hacks Repelled . | . . Allies | -11 -10 -------- Run | Yrd Mat Total Allies . | . . Largest Group . | . . Highest-Rated Group . | . . Highest-Rated Ally . | . . Total Orders . | . . Ally Attacks . | . . Total Damage . | . . Kills . | . . Allies Corrupted . | . . Allies Melted . | . . Intel | -11 -10 ------- Run | Yrd Mat Active Infowar (turns) 392 | 55 337 Terrain 51 | 13 38 Seismic 341 | 42 299 Robot Analysis Total . | . . Derelict Logs Recovered . | . . Drone Launches . | . . Drone Recoveries . | . . Exploration | -11 -10 ------------- Run | Yrd Mat Turns Passed 456 | 118 338 Spaces Moved 191 | 56 135 Core 5 | 5 . Treads . | . . Legs 186 | 51 135 Wheels . | . . Hover . | . . Flight . | . . Fastest Speed 50 | 50 120 Average Speed 167 | 115 189 Slowest Speed 260 | 120 260 Overloaded Moves . | . . Propulsion Burnouts . | . . Robots Hopped . | . . Potential Cave-ins . | . . Cave-ins Triggered . | . . Exploration Rate (%) 20 | 4 37 Regions Visited 1 Branch Regions . Pre-discovered Areas . | . . Known Exits Taken . | . . Unknown Exits Taken 1 | 1 . Scrap Searched . | . . Spaces Dug . | . . Terrain Destroyed . | . . Melee . | . . Projectile . | . . AOE . | . . Terrain Rammed . | . . Walls Destroyed . | . . Machines Disabled . | . . Actions | -11 -10 --------- Run | Yrd Mat Total 258 | 84 174 Wait 3 | . 3 Move 190 | 55 135 Hop . | . . Pick Up 18 | 10 8 Fast Attach 5 | 5 . Attach 4 | 2 2 Detach . | . . Swap 2 | 1 1 Drop 2 | . 2 Fire 34 | 11 23 Melee . | . . Ram . | . . Kick . | . . Crush . | . . Escape Stasis . | . . Rewire . | . . Trap . | . . Miscellaneous . | . . Route ------- -11/Scrapyard -10/Materials (discovered 1 exit: *Min) History --------- Turn | Location | Event 13 | -11/Scrapyard | Discovered new exit (range 16) 119 | -11/Scrapyard | Entered Materials 301 | -10/Materials | Identified exit to Mines 315 | -10/Materials | Build established: Mutant 428 | -10/Materials | Core integrity fell below 50% 452 | -10/Materials | Core integrity fell below 20% 457 | -10/Materials | Destroyed by G-34 Mercenary with Small Laser Last Messages --------------- 00394_ R-06 Scavenger collects Lgt. Ion Engine. 00395_ K-01 Serf collects debris. 00395_ U-05 Engineer lays Concrete. 00397_ R-06 Scavenger collects Flight Unit. 00401_ S-10 Pest destroyed. 00413_ K-01 Serf collects debris. 00418_ Assault Rifle destroyed. 00418_ Seismic Detector destroyed. 00421_ S-10 Pest destroyed. 00421_ Switching to secondary target: S-10 Pest. 00422_ K-01 Serf collects debris. 00423_ Aluminum Leg destroyed. 00424_ K-01 Serf destroyed. 00427_ S-10 Pest destroyed. 00427_ Switching to secondary target: S-10 Pest. 00438_ S-10 Pest destroyed. 00442_ R-06 Scavenger collects Wheel. 00447_ Assault Rifle destroyed. 00451_ Ion Engine destroyed. 00451_ Acquired Lgt. Assault Rifle. Map ----- +----------------------------------------------------+ | ## """ # # # #???? ?????????? | | ![[## """ # # # #####+##?????????? | | [[## # [ # # ^ #?????????? | | [[[## % / # # + #?????????? | | ## # # # #?????????? | | ######## # ## #?????????? | | #??????########### !## #?????????? | | #????????????????# ## #?????????? | | #????????????????# ## #?????????? | | #????????????????# ! ## #?????????? | | ######????????????????# #" !! #?????????? | | ??????????????????????#######T ! #?????????? | | ????????????????????????????#" #?????????? | | ????????????????????????????## #?????????? | | ?????????????????????????????# #?????????? | | ?????????????????????????????# #?????????? | | ?????????????????????????????# """ #?????????# | | ?????????????????????????????# """ ########## | | ?????????????????????????????# """ | | ????????????????? ???????????# | | ?????????????????????????????# | | ?????????????????????????????# ##########+### | | ????????????????????################???# #? | | ??????????# ##### %############ """ #? | | ?????????? === g ## """ #? | | ?????????? r >@ %!% g + """ #? | | ?????????? s %% [! ## #? | | ??????????# ##### # g! " #######+###? | | ????????????????????# "!"|" # T #??????? ?? | | ????????????????????#""!"|""# " ???? #? | | ????????????????????######### ????? | | ???????????????????????????/ ???? | | ??????????????????????????"### #######+## ????? | | ???????????????? ????????"???# #?????????? ????? | | ????????????????????????"????# =%#???????????????? | | ?????????????????? ????????#?# =#???????????????? | | ?????????????????????????????# #???????????????? | | ????????????????????????????? ???????????????? | | ????????????????????????????? ???????????????? | | ?????????????????????? ????? T ???????????????? | | ???????????????????????? ???# ???????????????? | | ????????????????????????????# ? ???????????????? | | ?????????????????????????????##?##???????????????? | | ?????????????????????????????????????????????????? | | ?????????????????????????????????????????????????? | | ?????????????????????????????????????????????????? | | ?????????????????????????????????????????????????? | | ?????????????????????????????????????????????????? | | ?????????????????????????????????????????????????? | | ?????????????????????????????????????????????????? | +----------------------------------------------------+ Best States ------------- Heat Dissipation 25 Energy Generation 10 Energy Capacity 250 Matter Stores 300 Matter Capacity 300 Sight Range 16 Terrain Scan Range 16 Terrain Scan Density 10 Evasion (%) 45 Item Schematics ----------------- None Robot Schematics ------------------ None Fabricated ------------ Nothing Repaired ---------- Nothing Alien Tech Used ----------------- None Achievements -------------- None Challenges ------------ None Game ------ Seed BraceDispersionWarhead Manual? 0 Play Time 00:09:53 Cumulative 38.0 hours Start 2025.06.22 @ 10:44:08 End 2025.06.22 @ 10:52:18 Sessions 1 Manual Loads 0 Difficulty Rogue Special Mode None Game No. 47 Rogue 47 Adventurer 0 Explorer 0 Win Type - Total 0 Types 0/0/0/0/0/0/0/0/0/0 Lore% 13 Gallery% 19 Achievement% 16 Wizard Run 0 Options --------- Layout 0 ASCII 0 Keyboard 0 Movement Mouse Keybinds 0 Fullscreen 1 Font 18/SmallcapsGlow Map View 76x50 Zoom Use 0% Tactical HUD 1 Map Filters NONE Filters LOW_CONTRAST(13,24,33) Steam 1 RUN: 6fb6be59-27cc-47e3-9607-452e23b3e806